Cogmind - Beta 10.2 @@@ ROGUE MODE // 2020.11.22 @ 20:17:12 // Halloween2020/ForbiddenLore Player: Runia Result: Self-destructed Performance ------------- Evolutions (2) 1000 Regions Visited (3) 600 Robots Destroyed (31) 155 Value Destroyed (786) 786 Prototype IDs (0) 0 Alien Tech Used (0) 0 Bonus (0) 0 TOTAL SCORE: 2541 Bonus ------- None Cogmind --------- Core Integrity 507/550 Matter 72/300 Energy 240/250 System Corruption 0% Temperature Cool (0) Movement Rolling (120) Ox3 Location -8/Materials Parts ------- > --- POWER (1) -------- Ion Engine > --- PROPULSION (4) --- Light Treads Wheel Compact Wheel > --- UTILITY (4) ------ Large Storage Unit Large Storage Unit Large Storage Unit High-capacity Storage Unit > --- WEAPON (2) ------- Grenade Launcher > --- INVENTORY (30) --- Ion Engine Ion Engine Faulty Heavy Ion Engine Large Storage Unit Large Storage Unit Compact Battery (300) Improved Sensor Array Transmission Jammer Improved ECM Suite Improved ECM Suite Improved ECM Suite Core Shielding Propulsion Shielding Light Armor Plating Hacking Suite Relay Coupler [Grunt] (18) Relay Coupler [Duelist] (17) Relay Coupler [Sentry] (14) Beam Rifle Assault Rifle Heavy Assault Rifle Autogun Grenade Launcher Improved Datajack Scythe Scythe Scythe Peak State ------------ > --- POWER ------------ Ion Engine > --- PROPULSION ------- Light Treads Light Treads Wheel Compact Wheel > --- UTILITY ---------- Large Storage Unit Large Storage Unit Large Storage Unit High-capacity Storage Unit > --- WEAPON ----------- Assault Rifle Scythe > --- INVENTORY -------- Ion Engine Ion Engine Heavy Ion Engine Wheel Compact Wheel Large Storage Unit Large Storage Unit Compact Battery Sensor Array Transmission Jammer Improved ECM Suite Improved ECM Suite Improved ECM Suite Core Shielding Propulsion Shielding Light Armor Plating Assault Rifle Heavy Assault Rifle Autogun Grenade Launcher Grenade Launcher Improved Datajack Scythe Scythe [Rating: 17] Favorites ----------- Power Ion Engine Engine Ion Engine Propulsion Light Treads Treads Light Treads Leg Aluminum Leg Wheel Wheel Utility Large Storage Unit Storage Large Storage Unit Weapon Assault Rifle Energy Gun Small Laser Ballistic Gun Assault Rifle Launcher Grenade Launcher Impact Weapon Hammer Slashing Weapon Scythe Build | -11 -10 -9 -8 ------- Run | Scr Mat Mat Mat Slots Evolved 4 | . . 2 2 Power . | . . . . Propulsion 2 | . . 1 1 Utility 2 | . . 1 1 Weapon . | . . . . Parts Attached 32 | 2 14 7 9 Power 2 | . 2 . . Engine 2 | . 2 . . Core . | . . . . Reactor . | . . . . Propulsion 9 | 2 1 3 3 Treads 2 | 1 . 1 . Leg . | . . . . Wheel 7 | 1 1 2 3 Hover . | . . . . Flight . | . . . . Utility 5 | . 3 1 1 Device . | . . . . Storage 5 | . 3 1 1 Processor . | . . . . Hackware . | . . . . Protection . | . . . . Artifact . | . . . . Weapon 16 | . 8 3 5 Energy Gun 4 | . 3 1 . Energy Cannon . | . . . . Ballistic Gun 6 | . 3 1 2 Ballistic Cannon . | . . . . Launcher 3 | . . 1 2 Special Weapon . | . . . . Impact Weapon 2 | . 2 . . Slashing Weapon 1 | . . . 1 Piercing Weapon . | . . . . Special Melee Weapon . | . . . . Unidentified Prototypes . | . . . . Parts Lost 8 | . 3 1 4 Power . | . . . . Propulsion 3 | . . . 3 Utility . | . . . . Weapon 5 | . 3 1 1 Highest Loss Streak 4 | . 1 1 4 Average Slot Usage (%) 98 | . 97 99 100 Engine 12 | . 14 11 9 Treads 16 | . 14 22 17 Wheel 13 | . 14 11 18 Storage 29 | . 26 33 36 Energy Gun 6 | . 9 4 . Ballistic Gun 15 | . 16 15 14 Naked Turns . | . . . . Heaviest Build 90 | 11 57 74 90 Greatest Support 40 | 10 16 40 40 Greatest Overweight (x) 7 | 1 3 7 4 Average Overweight (x) 3 | 1 2 5 2 Largest Inventory Capacity 30 | 6 18 24 30 Average Capacity 20 | 6 15 24 30 Most Carried 28 | 6 18 24 28 Average Carried 16 | 5 13 18 24 Final Capacity 30 | 6 18 24 30 Final Carried 27 | 4 17 24 27 Class Distribution -------------------- 55% | Mutant 44% | Hauler-Mutant Dominant Class ---------------- Mutant | -10/Materials Hauler-Mutant | -9/Materials Hauler-Mutant | -8/Materials Resources | -11 -10 -9 -8 ----------- Run | Scr Mat Mat Mat Matter Collected 500 | 200 151 149 . Remotely . | . . . . Salvage Created 691 | . 366 183 142 Parts 52 | . 16 17 19 Haulers Intercepted . | . . . . Recyclers Shooed 1 | . 1 . . Parts Field Recycled . | . . . . Retrieved Matter . | . . . . Parts Self-Destructed . | . . . . Prevented . | . . . . Kills | -11 -10 -9 -8 ------- Run | Scr Mat Mat Mat Combat Hostiles Destroyed 23 | . 9 7 7 Guns 11 | . 7 3 1 AOE 12 | . 2 4 6 Classes Destroyed 7 | . 6 1 . Worker 2 | . 1 . 1 Builder 4 | . 2 1 1 Recycler 1 | . 1 . . Watcher 1 | . 1 . . Swarmer 13 | . 3 4 6 Grunt 8 | . 6 2 . Sentry 2 | . . 1 1 Best Kill Streak 6 | . 6 4 5 Combat Bots Only 4 | . 4 4 3 Max Kills in Single Turn 4 | . 4 4 3 Gunslinging . | . . . . Exploded 4 | . 2 4 1 Melee . | . . . . Uniques/NPCs Destroyed . | . . . . Combat | -11 -10 -9 -8 -------- Run | Scr Mat Mat Mat Damage Taken 1223 | . 527 217 479 Core 162 | . 70 49 43 Absorbed by Shields . | . . . . Core Remaining (%) 86 | 100 72 87 . Volleys Fired 71 | . 46 14 11 Largest 2 | . 2 2 2 Hottest 60 | . 60 60 43 Shots Fired 125 | . 86 25 14 Gun 115 | . 86 23 6 Cannon . | . . . . Launcher 10 | . . 2 8 Special . | . . . . Kinetic 70 | . 48 16 6 Thermal 39 | . 32 7 . Explosive 10 | . . 2 8 Electromagnetic 6 | . 6 . . Robot Hit Streak 10 | . 10 7 4 Robot Miss Streak 3 | . 3 2 2 Penetration Max . | . . . . Secondary Targets . | . . . . Shots Hit Robots 75 | . 52 18 5 Core Hits 52 | . 24 11 17 Critical Hits . | . . . . Critical Kills . | . . . . Critical Parts Destroyed . | . . . . Melee Attacks 13 | . 12 . 1 Impact 12 | . 12 . . Slashing 1 | . . . 1 Piercing . | . . . . Sneak Attacks . | . . . . Combat Hostiles . | . . . . Follow-up Attacks . | . . . . Damage Inflicted 2104 | . 1173 491 440 Guns 815 | . 521 233 61 Cannons . | . . . . Explosions 1289 | . 652 258 379 Melee . | . . . . Ramming . | . . . . Kinetic 480 | . 264 155 61 Thermal 1015 | . 874 141 . Explosive 440 | . . 195 245 Electromagnetic 169 | . 35 . 134 Impact . | . . . . Slashing . | . . . . Piercing . | . . . . Highest Corruption . | . . . . Average Corruption . | . . . . Corruption Purged . | . . . . Overload Shots . | . . . . Overflow Damage 50 | . 50 . . Projectiles . | . . . . Explosions 50 | . 50 . . Melee . | . . . . Knockbacks . | . . . . Impact . | . . . . Kinetic . | . . . . Secondary . | . . . . Self-Inflicted Damage 192 | . 145 . 47 Shots 6 | . 3 . 3 Rammed . | . . . . Targets Rammed . | . . . . Kicked . | . . . . Crushed . | . . . . Highest Temperature 188 | . 188 6 . Average Temperature 55 | . 61 4 . Received Heat Transfer 267 | . 186 54 27 Siege Activations . | . . . . Robots Corrupted . | . . . . Combat Hostiles . | . . . . Parts Fried . | . . . . Impact Corruptions . | . . . . Robots Melted . | . . . . Combat Hostiles . | . . . . Parts Melted 1 | . 1 . . Heat Transferred 1225 | . 1000 225 . Parts Sabotaged . | . . . . Parts Stolen . | . . . . Parts Stripped . | . . . . Power Chain Reactions 2 | . 1 . 1 Missiles Intercepted . | . . . . Alert | -11 -10 -9 -8 ------- Run | Scr Mat Mat Mat Peak Influence 600 | . 182 261 600 Initial 109 | . . 31 109 Average 130 | . 68 185 250 Maximum Alert Level 2 | . . 1 2 Low Security (%) 79 | 100 100 51 56 Level 1 17 | . . 48 25 Level 2 2 | . . . 17 Level 3 . | . . . . Level 4 . | . . . . Level 5 . | . . . . High Security . | . . . . Max Security . | . . . . Squads Dispatched 6 | . 2 1 3 Investigation 3 | . 2 . 1 Extermination . | . . . . Reinforcement 1 | . . 1 . Assault 1 | . . . 1 Garrison 1 | . . . 1 Intercept . | . . . . Construction Impeded 1 | . . 1 . Haulers Reinforced . | . . . . Stealth | -11 -10 -9 -8 --------- Run | Scr Mat Mat Mat Distress Signals 4 | . 1 1 2 Communications Jammed . | . . . . Distress Signals . | . . . . Times Spotted 40 | . 16 11 13 Peak Tracking Total 5 | . 5 4 4 Tactical Retreats 3 | . 2 1 . Traps | -11 -10 -9 -8 ------- Run | Scr Mat Mat Mat Traps Triggered 2 | . 1 . 1 Indirectly 1 | . . . 1 Trap Hack Attempts . | . . . . Triggered . | . . . . Disarmed . | . . . . Reprogrammed . | . . . . Reused . | . . . . Traps Extracted . | . . . . Installed . | . . . . Triggered . | . . . . Machines | -11 -10 -9 -8 ---------- Run | Scr Mat Mat Mat Machines Disabled 16 | . 5 3 8 Max in Single Turn 4 | . 4 3 4 Garrison Access 1 | . . . 1 Machines Sabotaged . | . . . . Garrisons Compromised . | . . . . Overloaded Fab Kills . | . . . . Fab Network Shutdowns . | . . . . Hacking | -11 -10 -9 -8 --------- Run | Scr Mat Mat Mat Machines Accessed 6 | . 4 1 1 Terminals 6 | . 4 1 1 Fabricators . | . . . . Repair Stations . | . . . . Recycling Units . | . . . . Scanalyzers . | . . . . Garrison Access . | . . . . Total Hacks 18 | . 14 1 3 Successful 3 | . 2 . 1 Failed 15 | . 12 1 2 Catastrophic 3 | . 1 1 1 Database Lockouts . | . . . . Manual 8 | . 5 1 2 Terminals 18 | . 14 1 3 Fabricators . | . . . . Repair Stations . | . . . . Recycling Units . | . . . . Scanalyzers . | . . . . Garrison Access . | . . . . Terminal Hacks 3 | . 2 . 1 Terminal Index 1 | . . . 1 Unreport Threat 1 | . 1 . . Zone Layout 1 | . 1 . . Fabricator Hacks . | . . . . Repair Station Hacks . | . . . . Recycling Unit Hacks . | . . . . Scanalyzer . | . . . . Garrison Access Hacks . | . . . . Unauthorized Hacks . | . . . . Terminals . | . . . . Fabricators . | . . . . Repair Stations . | . . . . Recycling Units . | . . . . Scanalyzers . | . . . . Garrison Access . | . . . . Data Cores Recovered . | . . . . Used . | . . . . Hacking Detections 6 | . 4 1 1 Full Trace Events 1 | . 1 . . Feedback Events . | . . . . Feedback Blocked . | . . . . Robot Schematics Acquired . | . . . . Robots Built . | . . . . Matter . | . . . . Time . | . . . . Total Robot Build Rating . | . . . . Part Schematics Acquired . | . . . . Parts Built . | . . . . Matter . | . . . . Time . | . . . . Total Part Build Rating . | . . . . Parts Repaired . | . . . . Time . | . . . . Parts Recycled . | . . . . Recycled Matter . | . . . . Retrieved Matter . | . . . . Retrieved Components . | . . . . Parts Scanalyzed . | . . . . Part Schematics Acquired . | . . . . Parts Damaged . | . . . . Bothacking | -11 -10 -9 -8 ------------ Run | Scr Mat Mat Mat Used RIF Installer . | . . . . Robots Hacked . | . . . . Non-combat . | . . . . Combat . | . . . . Robot Hacks Applied . | . . . . Relay Couplers Released 3 | . . . 3 Machine Destruction 3 | . . . 3 Robots Rewired . | . . . . Allies Hacked . | . . . . Hacks Repelled . | . . . . Allies | -11 -10 -9 -8 -------- Run | Scr Mat Mat Mat Total Allies . | . . . . Largest Group . | . . . . Highest-Rated Group . | . . . . Highest-Rated Ally . | . . . . Total Orders . | . . . . Ally Attacks . | . . . . Total Damage . | . . . . Kills . | . . . . Allies Corrupted . | . . . . Allies Melted . | . . . . Intel | -11 -10 -9 -8 ------- Run | Scr Mat Mat Mat Robot Analysis Total . | . . . . Derelict Logs Recovered . | . . . . Drone Launches . | . . . . Drone Recoveries . | . . . . Exploration | -11 -10 -9 -8 ------------- Run | Scr Mat Mat Mat Turns Passed 1162 | 4 642 341 175 Spaces Moved 624 | 1 366 173 84 Core . | . . . . Treads 23 | . . 1 22 Legs . | . . . . Wheels 601 | 1 366 172 62 Hover . | . . . . Flight . | . . . . Fastest Speed 90 | 90 90 140 120 Average Speed 128 | 90 116 146 140 Slowest Speed 200 | 90 130 180 200 Overloaded Moves . | . . . . Propulsion Burnouts . | . . . . Robots Hopped . | . . . . Cave-ins Triggered . | . . . . Exploration Rate (%) 27 | 2 69 20 17 Regions Visited 3 Branch Regions . Pre-discovered Areas . | . . . . Known Exits Taken . | . . . . Unknown Exits Taken 3 | 1 1 1 . Scrap Searched . | . . . . Spaces Dug 4 | . 4 . . Terrain Destroyed 67 | . 37 6 24 Melee 4 | . 4 . . Projectile . | . . . . AOE 63 | . 33 6 24 Terrain Rammed . | . . . . Walls Destroyed . | . . . . Machines Disabled . | . . . . Actions | -11 -10 -9 -8 --------- Run | Scr Mat Mat Mat Total 844 | 4 481 236 123 Wait 50 | . 17 24 9 Move 621 | . 365 172 84 Hop . | . . . . Pick Up 43 | . 21 14 8 Fast Attach . | . . . . Attach 11 | . 4 3 4 Detach . | . . . . Swap 21 | 2 10 4 5 Drop 14 | 2 6 5 1 Fire 71 | . 46 14 11 Melee 13 | . 12 . 1 Ram . | . . . . Kick . | . . . . Crush . | . . . . Escape Stasis . | . . . . Rewire . | . . . . Trap . | . . . . Miscellaneous . | . . . . Route ------- -11/Scrapyard -10/Materials -9/Materials -8/Materials History --------- Turn | Location | Event 5 | -11/Scrapyard | Discovered new exit (range 0) 5 | -11/Scrapyard | Entered Materials 318 | -10/Materials | Build established: Mutant 621 | -10/Materials | Discovered new exit (range 16) 647 | -10/Materials | Entered another Materials area 647 | -9/Materials | Evolved 2 slots: Propulsion x1, Utility x1 935 | -9/Materials | Discovered new exit (range 15) 945 | -9/Materials | Build established: Hauler-Mutant 988 | -9/Materials | Entered another Materials area 988 | -8/Materials | Evolved 2 slots: Propulsion x1, Utility x1 1062 | -8/Materials | Garrison activated, responded to threat 1163 | -8/Materials | Self-destructed Last Messages --------------- Penetrated by Slug. Acquired Relay Coupler [Grunt]. R-06 Scavenger collects Lgt. Assault Rifle. U-05 Engineer lays Concrete. Slug penetrates R-06 Scavenger. Acquired Relay Coupler [Sentry]. U-05 Engineer lays Concrete. K-01 Serf collects debris. Penetrated by Slug. Lgt. Treads destroyed. R-06 Scavenger collects Wheel. Acquired Relay Coupler [Duelist]. U-05 Engineer lays Concrete. K-01 Serf collects debris. C-30 ARC bursts open, deploying its payload. H-55 Commando unfolds itself. Penetrated by Slug. Assault Rifle destroyed. U-05 Engineer lays Concrete. Wheel destroyed. Map ----- +----------------------------------------------------+ | ?????????????????????????????????????????????????? | | ?????????????????????????????????????????????????? | | ?????????????????????????????????????????????????? | | ???????????????????????????????????? ????????????? | | ??????????????????????????????????? ????????????? | | ??????????????????????????????????? ????????????? | | ???????????????????????????????????? ????????????? | | ???????????????????????????????????? ???????????? | | ???????????????????????????????????? ???????????? | | ???????????????????????????????????? ???????????? | | ???????????????###########?????????? ????????##?? | | ???????????????# #??????????#+######## ### | | ???????????????# ####??##???# ##! = # | | ???????????????# ## ### ##### ## !] # | | ???????????????# + ## !] # | | ???????????????# ## # ] # | | ???????????????# # !!! Ch = # | | ???????????????# # !! [% "" #! | | ???????????????# # !! ! w*# S"" # | | ???????????????######+#### # "" #! | | ???????????????????# !%! # | | ???????????????????# * # #+##### | | ???????????????????# = | | ???????????????????# a = | | ???????????????????# "" u r | | ???????????????????# "G @ ### | | ???????????????????# "" % #?# | | ???????????????????# #?# | | ???????????????????# " #?# | | ???????????????????# #?# | | ???????????????????# #?# | | ???????????????????# r """ #?# | | ???????????????????# """ #?# | | ???????????????????# k ?"" #?? | | ???????????????????u ?? #?? | | ?????????????????? t%* ??? #?? | | ?????????????????? h############ ???? ??? | | ????????????????? ???????????????????? ??? | | ?????????????????? ??????????????????????????? | | ????????????????????? ???????????????????????????? | | ?????????????????????????????????????????????????? | | ?????????????????????????????????????????????????? | | ?????????????????????????????????????????????????? | | ?????????????????????????????????????????????????? | | ?????????????????????????????????????????????????? | | ?????????????????????????????????????????????????? | | ?????????????????????????????????????????????????? | | ?????????????????????????????????????????????????? | | ?????????????????????????????????????????????????? | | ?????????????????????????????????????????????????? | +----------------------------------------------------+ Best States ------------- Heat Dissipation 31 Energy Generation 10 Energy Capacity 250 Matter Stores 300 Matter Capacity 300 Sight Range 16 Terrain Scan Density 10 Evasion (%) 42 Recoil Reduction 2 Item Schematics ----------------- None Robot Schematics ------------------ None Fabricated ------------ Nothing Alien Tech Used ----------------- None Achievements -------------- None Challenges ------------ None Game ------ Seed FusionLongswordEdition Manual? 0 Play Time 00:11:24 Cumulative 155.6 hours Start 2020.11.22 @ 20:08:01 End 2020.11.22 @ 20:17:12 Sessions 1 Manual Loads 0 Difficulty Rogue Special Mode Halloween2020/ForbiddenLore Game No. 181 Rogue 181 Adventurer 0 Explorer 0 Win Type - Total 2 Types 2/0/0/0/0/0/0/0/0 Lore% 54 Gallery% 74 Achievement% 55 Wizard Run 0 Options --------- ASCII 0 Keyboard 0 Movement Mouse Keybinds 1 Fullscreen 2 Font 24/Smallcaps Map View 76x50 Tactical HUD 1 Map Filters NONE Filters NONE Steam 1 RUN: 236c5e2d-ec9a-4d08-b012-bdac0f28b52f